bitfinex/quotes_SOLUSD_20220129
["timestamp","ask_amount","ask_price","bid_price","bid_amount"]
[1643499983672,6.0,95.747,95.684,0.25]
[1643499983867,0.25,95.746,95.684,0.25]
[1643499984059,0.25,95.746,95.678,1.43172056]
[1643499984263,0.25,95.746,95.682,0.25]
[1643499985438,6.0,95.747,95.678,0.25]
[1643499985558,0.25,95.746,95.679,1.43172056]
[1643499985756,44.59071428,95.757,95.68,1.68172056]
[1643499985966,44.59071428,95.757,95.676,1.43172056]
[1643499986276,44.59071428,95.757,95.69,6.0]
[1643499986661,44.59071428,95.757,95.691,0.25]
[1643499987083,6.0,95.747,95.691,0.25]
[1643499987284,0.25,95.746,95.691,0.25]
[1643499987785,0.25,95.746,95.678,0.25]
[1643499988992,0.25,95.746,95.687,6.0]
[1643499989206,0.25,95.756,95.687,6.0]
[1643499989392,0.25,95.756,95.688,0.25]
[1643499990591,0.25,95.756,95.688,6.25]
[1643499992895,0.25,95.756,95.688,0.25]
[1643499993098,0.25,95.756,95.698,6.0]
[1643499993396,0.25,95.756,95.699,0.25]
[1643499994709,0.25,95.756,95.692,6.0]
[1643499994904,0.25,95.756,95.693,0.25]
[1643499995501,6.0,95.747,95.693,0.25]
[1643499995896,0.25,95.746,95.693,0.25]
[1643499996504,0.25,95.746,95.688,0.25]
[1643499997413,44.59071428,95.757,95.688,0.25]
[1643499997414,0.25,95.756,95.688,0.25]
[1643499998028,0.25,95.756,95.691,6.0]
[1643499998201,0.25,95.756,95.688,0.25]
[1643499998399,0.25,95.756,95.692,6.0]
[1643499998820,0.25,95.756,95.693,0.25]
[1643499999599,44.59071428,95.757,95.693,6.25]
[1643500000014,49.6041,95.778,95.696,6.0]
[1643500000409,0.25,95.777,95.703,6.0]
[1643500000904,34.02613919,95.777,95.704,0.25]
[1643500001099,34.02613919,95.777,95.701,6.0]
[1643500001302,6.0,95.767,95.693,104.6]
[1643500001702,0.25,95.766,95.693,104.6]
[1643500002109,0.25,95.766,95.692,22.6113]
[1643500002602,0.25,95.766,95.693,104.85]
[1643500002817,33.77613919,95.777,95.693,0.25]
[1643500002818,6.0,95.767,95.693,0.25]
[1643500003202,0.25,95.766,95.693,0.25]
[1643500005540,0.25,95.766,95.693,104.85]
[1643500005921,0.25,95.776,95.693,104.85]
[1643500006107,0.25,95.776,95.7,15.667]
[1643500006349,0.25,95.776,95.701,0.25]
[1643500007609,0.25,95.776,95.694,0.25]
[1643500008208,0.25,95.776,95.694,1.68172056]
[1643500008455,0.25,95.776,95.697,1.43172056]
[1643500008817,0.25,95.776,95.698,0.25]
[1643500010014,0.25,95.776,95.696,1.43172056]
[1643500010211,0.25,95.776,95.697,0.25]
[1643500011120,0.25,95.776,95.703,6.0]
[1643500011317,0.25,95.776,95.704,0.25]
[1643500011510,0.25,95.776,95.703,6.0]
[1643500011753,6.0,95.767,95.703,6.0]
[1643500011924,6.0,95.767,95.694,1.43172056]
[1643500012111,0.25,95.766,95.693,1.43172056]
[1643500012944,0.25,95.766,95.694,0.25]
[1643500013716,0.25,95.776,95.694,1.68172056]
[1643500013935,0.25,95.776,95.694,1.43172056]
[1643500014139,0.25,95.776,95.696,1.43172056]
[1643500014320,0.25,95.776,95.698,1.43172056]
[1643500014524,0.25,95.776,95.699,1.43172056]
[1643500014912,0.25,95.776,95.7,0.25]
[1643500015532,6.0,95.767,95.7,0.25]
[1643500015931,0.25,95.766,95.7,0.25]
[1643500016126,0.25,95.766,95.697,0.25]
[1643500017016,0.25,95.887,95.697,1.68172056]
[1643500017289,0.25,95.887,95.692,22.6113]
[1643500017290,1.44339452,95.8,95.705,1.43172056]
[1643500017541,22.8743,95.813,95.715,6.0]
[1643500017542,0.25,95.791,95.715,6.0]
[1643500017930,0.25,95.791,95.716,6.25]
[1643500018139,0.25,95.791,95.726,6.0]
[1643500018373,0.25,95.791,95.727,24.3488]
[1643500018529,0.25,95.81,95.727,24.3488]
[1643500019534,6.0,95.801,95.727,24.3488]
[1643500019727,0.25,95.81,95.727,24.3488]
[1643500019928,0.25,95.8,95.727,24.3488]
[1643500020147,0.25,95.81,95.727,24.3488]
[1643500022961,0.25,95.81,95.726,6.0]
[1643500023150,0.25,95.81,95.731,6.0]
[1643500023556,0.25,95.81,95.73,6.0]
[1643500024507,0.25,95.81,95.731,0.25]
[1643500024653,0.25,95.81,95.731,6.25]
[1643500024854,0.25,95.812,95.731,0.25]
[1643500025252,0.25,95.812,95.731,104.85]
[1643500026883,6.0,95.803,95.731,104.85]
[1643500027055,6.0,95.803,95.731,122.16589372]
[1643500027657,6.0,95.794,95.731,122.16589372]
[1643500029665,6.0,95.794,95.742,104.6]
[1643500029860,6.0,95.794,95.743,0.25]
[1643500030072,6.0,95.823,95.743,0.25]
[1643500030371,0.25,95.822,95.743,0.25]
[1643500030958,0.25,95.822,95.732,0.25]
[1643500030959,24.8749,95.822,95.732,0.25]
[1643500031165,6.0,95.813,95.732,0.25]
[1643500031359,6.25,95.812,95.732,0.25]
[1643500031572,6.0,95.812,95.732,0.25]
[1643500031792,0.25,95.811,95.732,0.25]
[1643500032177,0.25,95.811,95.731,17.31589372]
[1643500032363,2.95669142,95.81,95.717,1.43172056]
[1643500032571,6.0,95.8,95.711,17.31589372]
[1643500032787,31.82156341,95.799,95.711,17.31589372]
[1643500032964,31.82156341,95.799,95.721,6.0]
[1643500032965,37.82156341,95.799,95.721,6.0]
[1643500033563,37.82156341,95.799,95.722,6.25]
[1643500034581,37.82156341,95.799,95.722,0.25]
[1643500034766,37.82156341,95.799,95.713,0.25]
[1643500035573,37.82156341,95.799,95.713,17.56589372]
[1643500041978,37.82156341,95.799,95.723,6.0]
[1643500042380,37.82156341,95.799,95.724,0.25]
[1643500043995,37.82156341,95.799,95.714,0.25]
[1643500045685,37.82156341,95.799,95.723,6.0]
[1643500045882,37.82156341,95.799,95.724,0.25]
[1643500046083,37.82156341,95.799,95.726,6.0]
[1643500046283,37.82156341,95.799,95.727,0.25]
[1643500047106,37.82156341,95.799,95.727,6.25]
[1643500047705,37.82156341,95.799,95.727,0.25]
[1643500048007,37.82156341,95.799,95.726,6.0]
[1643500048432,37.82156341,95.799,95.727,6.25]
[1643500048811,37.82156341,95.799,95.727,0.25]
[1643500049542,37.82156341,95.799,95.718,0.25]
[1643500049706,37.82156341,95.799,95.724,0.25]
[1643500049924,37.82156341,95.799,95.723,6.0]
[1643500050308,37.82156341,95.799,95.724,0.25]
[1643500050608,37.82156341,95.799,95.726,6.0]
[1643500050920,37.82156341,95.799,95.727,0.25]
[1643500052758,37.57156341,95.799,95.727,0.25]
[1643500052917,6.0,95.799,95.727,0.25]
[1643500053110,1.44339452,95.821,95.736,6.0]
[1643500053314,1.44339452,95.825,95.737,25.0716]
[1643500053608,1.44339452,95.83,95.741,6.0]
[1643500053858,1.44339452,95.833,95.747,6.0]
[1643500054010,6.0,95.823,95.75,6.0]
[1643500054410,6.0,95.823,95.751,0.25]
[1643500054615,6.0,95.819,95.751,0.25]
[1643500054974,0.25,95.818,95.751,0.25]
[1643500055510,0.25,95.818,95.749,0.25]
[1643500055716,35.80608321,95.829,95.749,0.25]
[1643500057066,1.44339452,95.833,95.749,0.25]
[1643500057235,112.9,95.943,95.749,0.25]
[1643500057236,1.44339452,95.842,95.779,1.43172056]
[1643500057422,1.44339452,95.876,95.78,15.06]
[1643500057721,24.8657,95.885,95.802,1.43172056]
[1643500057917,41.92435238,95.884,95.806,1.43172056]
[1643500058139,41.92435238,95.884,95.816,6.0]
[1643500058316,41.92435238,95.884,95.817,0.25]
[1643500058514,6.0,95.874,95.817,6.25]
[1643500058714,6.0,95.874,95.818,22.28588298]
[1643500059201,6.0,95.874,95.828,6.0]
[1643500059338,41.92435238,95.884,95.829,0.25]
[1643500059522,41.92435238,95.884,95.829,28.53588298]
[1643500059923,24.7214,95.917,95.83,22.28588298]
[1643500060115,24.7214,95.917,95.84,6.0]
[1643500060326,24.7214,95.917,95.841,0.25]
[1643500060528,24.7214,95.917,95.841,6.25]
[1643500061016,34.54512011,95.916,95.841,6.25]
[1643500061225,34.79512011,95.916,95.842,6.0]
[1643500061686,34.79512011,95.916,95.843,0.25]
[1643500063434,34.54512011,95.916,95.843,0.25]
[1643500064726,34.54512011,95.916,95.844,22.28588298]
[1643500065123,34.54512011,95.916,95.845,0.25]
[1643500065549,34.54512011,95.916,95.854,6.0]
[1643500065822,34.54512011,95.916,95.855,0.25]
[1643500067054,34.54512011,95.916,95.856,6.0]
[1643500067240,0.25,95.915,95.847,0.25]
[1643500067657,6.0,95.906,95.824,22.28588298]
[1643500067825,0.25,95.905,95.825,0.25]
[1643500068131,6.0,95.904,95.834,6.0]
[1643500068223,0.25,95.905,95.834,6.0]
[1643500068439,0.25,95.903,95.835,0.25]
[1643500068648,0.25,95.905,95.835,6.25]
[1643500069532,6.0,95.906,95.835,28.53588298]
[1643500069738,6.0,95.906,95.835,22.53588298]
[1643500069926,0.25,95.905,95.835,22.53588298]
[1643500073926,0.25,95.915,95.835,22.53588298]
[1643500075152,0.25,95.915,95.845,6.0]
[1643500075330,0.25,95.915,95.846,0.25]
[1643500075539,0.25,95.915,95.846,22.5340052]
[1643500075734,34.54512011,95.916,95.846,22.5340052]
[1643500075931,34.54512011,95.916,95.847,22.2840052]
[1643500076148,0.25,95.915,95.847,34.3740052]
[1643500076454,0.25,95.915,95.857,6.0]
[1643500076652,0.25,95.915,95.858,6.0]
[1643500076841,0.25,95.915,95.858,28.5340052]
[1643500077233,0.45326008,95.918,95.859,22.2840052]
[1643500077629,0.45326008,95.918,95.869,6.0]
[1643500077838,0.45326008,95.918,95.87,0.25]
[1643500078031,3.0,95.955,95.87,113.12672269]
[1643500078233,45.31085703,95.956,95.87,150.47072789]
[1643500078433,45.31085703,95.956,95.871,24.56072789]
[1643500078637,45.31085703,95.956,95.881,6.0]
[1643500078847,45.31085703,95.956,95.882,0.25]
[1643500079031,45.31085703,95.956,95.883,6.0]
[1643500079430,45.31085703,95.956,95.892,6.0]
[1643500079834,0.25,95.955,95.894,6.0]
[1643500080043,6.0,95.946,95.873,24.869]
[1643500080240,0.25,95.955,95.873,24.869]
[1643500080241,23.351,95.955,95.873,24.869]
[1643500080432,0.25,95.945,95.874,0.25]
[1643500081132,0.25,95.945,95.874,21.69044964]
[1643500081333,45.31085703,95.956,95.874,21.69044964]
[1643500081539,0.25,95.954,95.874,21.69044964]
[1643500081751,45.31085703,95.956,95.874,21.69044964]
[1643500082940,0.25,95.955,95.874,21.69044964]
[1643500083343,45.31085703,95.956,95.874,21.69044964]
[1643500083947,45.31085703,95.956,95.875,2.27004925]
[1643500084140,45.31085703,95.956,95.885,6.0]
[1643500084355,45.31085703,95.956,95.886,0.25]
[1643500084541,45.31085703,95.956,95.886,6.25]
[1643500085540,45.31085703,95.956,95.886,27.69044964]
[1643500085744,45.31085703,95.956,95.886,21.69044964]
[1643500088377,0.1,95.975,95.887,2.27004925]
[1643500088577,6.0,95.968,95.888,104.6]
[1643500088770,6.0,95.968,95.897,6.0]
[1643500088972,6.0,95.968,95.898,6.0]
[1643500089185,6.0,95.968,95.898,6.25]
[1643500089372,39.16843523,95.967,95.9,6.0]
[1643500089571,0.1,95.966,95.909,6.0]
[1643500089781,6.0,95.957,95.91,0.25]
[1643500090981,6.0,95.957,95.902,0.25]
[1643500096176,6.0,95.957,95.902,21.69044964]
[1643500096380,6.0,95.957,95.903,0.25]
[1643500098180,6.0,95.957,95.903,21.69044964]
[1643500098389,6.0,95.957,95.904,0.25]
[1643500103389,5.0,95.957,95.904,0.25]
[1643500103591,0.1,95.966,95.905,2.27004925]
[1643500103907,0.35,95.995,95.906,0.25]
[1643500104605,42.56952814,95.995,95.906,0.25]
[1643500104796,0.1,95.994,95.906,0.25]
[1643500105430,6.0,95.985,95.906,0.25]
[1643500105792,0.25,95.984,95.906,0.25]
[1643500109197,23.6886,95.984,95.906,0.25]
[1643500109404,0.1,95.983,95.904,1.43172056]
[1643500109602,24.74654367,95.973,95.894,1.43172056]
[1643500109842,0.35,95.972,95.878,1.43172056]
[1643500110008,1.44339452,95.96,95.866,1.43172056]
[1643500110205,34.9337172,95.958,95.869,1.43172056]
[1643500110408,6.0,95.95,95.869,1.43172056]
[1643500110606,6.0,95.95,95.868,1.43172056]
[1643500110607,6.0,95.947,95.868,1.43172056]
[1643500110833,0.25,95.946,95.868,2.056e-05]
[1643500111010,38.03235461,95.939,95.816,4.65204764]
[1643500111205,15.06,95.93,95.816,4.65204764]
[1643500111416,15.06,95.93,95.792,2.83102837]
[1643500111607,138.43788033,95.919,95.792,2.83102837]
[1643500111804,15.06,95.91,95.792,2.83102837]
[1643500112036,21.658,95.9,95.772,2.83102837]
[1643500112209,21.658,95.9,95.778,2.27004925]
[1643500112210,6.0,95.9,95.778,2.27004925]
[1643500112404,33.37819148,95.899,95.793,2.27004925]
[1643500112605,23.0778,95.898,95.803,6.0]
[1643500112807,23.9415,95.897,95.804,0.25]
[1643500113219,6.0,95.887,95.804,2.27004925]
[1643500113322,0.25,95.886,95.8,15.06]
[1643500113509,6.25,95.886,95.8,15.06]
[1643500113806,6.25,95.886,95.779,15.60394534]
[1643500114005,33.83788033,95.884,95.78,0.25]
[1643500114496,6.0,95.874,95.78,0.25]
[1643500114629,22.9331,95.873,95.78,0.25]
[1643500114826,23.1831,95.873,95.78,0.25]
[1643500115031,33.12819148,95.862,95.78,0.25]
[1643500115469,0.25,95.861,95.781,2.27004925]
[1643500115828,33.12819148,95.862,95.782,0.25]
[1643500116025,33.12819148,95.862,95.791,6.0]
[1643500116245,24.6159,95.909,95.792,104.6]
[1643500116430,24.6159,95.897,95.793,22.7119]
[1643500116627,6.0,95.887,95.803,6.0]
[1643500116927,6.0,95.887,95.804,0.25]
[1643500117129,15.06,95.92,95.804,0.25]
[1643500117130,15.06,95.92,95.806,104.6]
[1643500117335,46.5642,95.919,95.807,0.25]
[1643500117527,15.06,95.93,95.816,6.0]
[1643500117936,6.0,95.92,95.817,0.25]
[1643500118143,34.59030516,95.918,95.818,6.0]
[1643500118430,34.59030516,95.918,95.819,0.25]
[1643500118665,6.0,95.908,95.819,2.5133916]
[1643500118843,0.25,95.907,95.819,2.5133916]
[1643500119029,6.25,95.907,95.82,2.2633916]
[1643500119429,6.25,95.907,95.821,0.25]
[1643500119629,6.25,95.907,95.83,6.0]
[1643500119869,6.25,95.907,95.831,0.25]
[1643500120030,6.25,95.907,95.832,6.0]
[1643500120238,0.25,95.907,95.832,6.0]
[1643500120429,23.8211,95.917,95.833,0.25]
[1643500120630,23.8211,95.917,95.833,6.25]
[1643500120833,23.8211,95.917,95.834,2.2633916]
[1643500121065,23.8211,95.917,95.834,8.2633916]
[1643500121234,34.59030516,95.918,95.843,6.0]
[1643500121433,34.59030516,95.918,95.835,0.25]
[1643500121434,34.59030516,95.918,95.836,104.6]
[1643500121836,34.59030516,95.918,95.837,0.25]
[1643500122109,0.25,95.917,95.837,0.25]
[1643500124411,0.25,95.917,95.836,0.25]
[1643500124733,6.0,95.908,95.836,0.25]
[1643500124979,34.59030516,95.918,95.836,0.25]
[1643500125140,34.59030516,95.918,95.845,6.0]
[1643500125339,34.59030516,95.918,95.846,0.25]
[1643500125553,34.59030516,95.918,95.847,6.0]
[1643500125734,34.59030516,95.918,95.847,8.2633916]
[1643500125931,34.59030516,95.918,95.848,0.25]
[1643500126132,34.59030516,95.918,95.848,2.5133916]
[1643500126347,34.59030516,95.918,95.849,2.2633916]
[1643500126572,0.25,95.917,95.849,2.2633916]
[1643500126741,0.25,95.917,95.85,0.25]
[1643500126932,0.25,95.917,95.848,0.25]
[1643500126933,34.59030516,95.918,95.835,23.3785]
[1643500127132,34.59030516,95.918,95.849,2.2633916]
[1643500127548,34.59030516,95.918,95.859,6.0]
[1643500127736,34.59030516,95.918,95.849,2.2633916]
[1643500128135,34.59030516,95.918,95.85,0.25]
[1643500129733,34.59030516,95.918,95.859,6.0]
[1643500130138,34.59030516,95.918,95.86,0.25]
[1643500131003,34.59030516,95.918,95.861,2.2633916]
[1643500131137,34.59030516,95.918,95.871,6.0]
[1643500131395,47.164,95.949,95.872,0.25]
[1643500132137,3.0,95.959,95.873,2.2633916]
[1643500132338,45.17429319,95.958,95.874,24.9]
[1643500132546,45.17429319,95.958,95.874,129.5]
[1643500132743,45.17429319,95.958,95.875,2.2633916]
[1643500132936,6.0,95.948,95.874,24.9]
[1643500133946,23.5495,95.957,95.874,24.9]
[1643500134440,0.25,95.956,95.874,24.9]
[1643500136245,0.25,95.956,95.874,0.25]
[1643500136467,0.25,95.956,95.859,15.5934]
[1643500136468,6.0,95.947,95.859,15.5934]
[1643500136649,6.0,95.947,95.851,22.8204]
[1643500136843,0.25,95.946,95.856,0.25]
[1643500137042,6.0,95.947,95.856,0.25]
[1643500137246,0.25,95.946,95.856,0.25]
[1643500138750,0.25,95.946,95.852,0.25]
[1643500140168,22.04177862,95.939,95.852,0.25]
[1643500140667,0.25,95.938,95.852,0.25]
[1643500140850,0.25,95.938,95.851,0.25]
[1643500143763,45.13287862,95.939,95.851,0.25]
[1643500143962,45.13287862,95.939,95.85,2.2633916]
[1643500143963,0.25,95.938,95.85,2.2633916]
[1643500145256,0.25,95.938,95.851,0.25]
[1643500146764,0.25,95.938,95.85,2.2633916]
[1643500146968,6.0,95.929,95.85,2.2633916]
[1643500147155,6.0,95.929,95.841,24.2542]
[1643500147433,0.25,95.928,95.841,24.2542]
[1643500147624,6.0,95.927,95.841,24.2542]
[1643500147758,23.9611,95.926,95.841,24.2542]
[1643500147964,23.9611,95.926,95.842,0.25]
[1643500150095,29.39978687,95.926,95.842,0.25]
[1643500150284,23.9611,95.926,95.842,0.25]
[1643500151291,23.9611,95.926,95.843,2.2633916]
[1643500151876,23.7111,95.926,95.844,0.25]
[1643500151993,22.04177862,95.939,95.844,0.25]
[1643500152185,22.04177862,95.939,95.845,2.2633916]
[1643500152186,44.72457862,95.939,95.845,2.2633916]
[1643500152396,44.72457862,95.939,95.846,0.25]
[1643500152595,22.04177862,95.939,95.855,6.0]
[1643500152790,0.1,95.975,95.856,0.25]
[1643500153034,0.1,95.976,95.86,21.06]
[1643500153187,0.1,95.976,95.861,4.62199073]
[1643500153409,2.84659719,96.015,95.87,52.113]
[1643500153600,0.1,96.018,95.88,21.06]
[1643500153799,34.79633299,95.969,95.881,0.25]
[1643500154097,0.1,95.968,95.882,6.0]
[1643500154284,0.1,95.968,95.883,0.25]
[1643500154483,3.0,96.001,95.883,21.94025579]
[1643500154686,3.0,96.001,95.891,6.0]
[1643500154896,6.0,95.991,95.9,15.06]
[1643500155289,63.4624173,95.99,95.901,23.8366]
[1643500155491,0.1,95.989,95.901,23.8366]
[1643500155689,6.0,95.98,95.901,23.8366]
[1643500159998,6.0,95.98,95.911,6.0]
[1643500160406,6.0,95.98,95.912,0.25]
[1643500162403,2.0812757,95.983,95.92,6.0]
[1643500162596,2.0812757,95.983,95.93,15.06]
[1643500162800,2.0812757,95.983,95.931,0.25]
[1643500163064,3.0,96.026,95.94,6.0]
[1643500163302,38.35313153,96.025,95.941,24.9602]
[1643500163505,0.1,96.024,95.941,30.9602]
[1643500163697,0.35,96.024,95.941,30.9602]
[1643500163897,0.1,96.038,95.941,30.9602]
[1643500164703,44.67859761,96.032,95.942,104.6]
[1643500164906,6.0,96.029,95.943,0.25]
[1643500165099,6.0,96.022,95.953,104.6]
[1643500165350,6.0,96.022,95.954,0.25]
[1643500165351,0.25,96.021,95.954,0.25]
[1643500165707,0.25,96.021,95.955,106.86296244]
[1643500165904,0.25,96.021,95.956,0.25]
[1643500166338,0.1,96.038,95.956,0.25]
[1643500166904,0.1,96.038,95.97,15.06]
[1643500167102,0.1,96.038,95.971,104.6]
[1643500167314,0.1,96.038,95.971,107.11296244]
[1643500168002,0.1,96.038,95.981,6.0]
[1643500168203,0.1,96.081,95.983,104.6]
[1643500168462,0.1,96.081,95.984,0.25]
[1643500168615,0.1,96.081,95.993,6.0]
[1643500168908,33.84930282,96.067,95.994,0.25]
[1643500169103,0.1,96.066,96.0,6.0]
[1643500169304,0.1,96.066,96.001,0.25]
[1643500169504,6.0,96.057,95.994,0.25]
[1643500169715,0.1,96.066,95.994,0.25]
[1643500170110,0.35,96.066,95.957,2.26296244]
[1643500170314,0.1,96.066,95.97,15.06]
[1643500170505,0.1,96.066,95.975,19.42686419]
[1643500170804,0.35,96.066,95.98,6.0]
[1643500171013,6.0,96.057,95.971,22.5138]
[1643500171205,33.63158005,96.04,95.943,22.5138]
[1643500171424,112.9,96.025,95.94,15.3252]
[1643500171615,6.0,96.015,95.94,15.3252]
[1643500171808,0.25,96.014,95.933,104.6]
[1643500172414,0.1,96.023,95.933,104.6]
[1643500172608,0.1,96.023,95.934,0.25]
[1643500172833,0.35,96.023,95.934,0.25]
[1643500173026,25.3224,96.023,95.934,23.6321]
[1643500173220,0.1,96.022,95.934,23.6321]
[1643500173614,0.1,96.022,95.935,2.26296244]
[1643500173819,0.1,96.022,95.934,23.6321]
[1643500173820,0.1,96.022,95.936,0.25]
[1643500174020,0.1,96.022,95.934,23.6321]
[1643500174214,0.1,96.022,95.937,2.26296244]
[1643500174444,0.1,96.022,95.944,6.0]
[1643500174671,3.0,96.05,95.947,6.0]
[1643500174883,3.0,96.05,95.95,6.0]
[1643500175045,3.0,96.05,95.955,6.0]
[1643500175243,43.11825441,96.049,95.956,0.25]
[1643500175448,0.1,96.048,95.956,0.25]
[1643500175845,23.916,96.048,95.956,0.25]
[1643500176088,0.1,96.047,95.956,0.25]
[1643500176253,6.0,96.038,95.956,0.25]
[1643500176454,6.0,96.038,95.953,0.25]
[1643500177046,0.1,96.047,95.953,0.25]
[1643500177653,0.1,96.047,95.953,104.85]
[1643500177848,0.35,96.047,95.953,104.85]
[1643500178046,0.35,96.047,95.953,107.11296244]
[1643500178661,0.1,96.047,95.953,107.11296244]
[1643500178968,0.1,96.048,95.963,110.6]
[1643500179149,0.1,96.048,95.965,104.6]
[1643500179375,0.1,96.048,95.966,0.25]
[1643500179550,0.1,96.054,95.976,104.6]
[1643500179751,0.1,96.054,95.977,23.7693]
[1643500179951,0.1,96.054,95.986,6.0]
[1643500180164,0.1,96.054,95.987,6.0]
[1643500180356,38.52189803,96.054,95.988,0.25]
[1643500180597,0.1,96.053,95.977,23.5193]
[1643500180770,0.1,96.053,95.978,0.25]
[1643500181155,104.7,96.053,95.977,23.5193]
[1643500181352,0.1,96.052,95.977,23.5193]
[1643500181957,6.0,96.043,95.977,23.5193]
[1643500182152,6.0,96.043,95.953,122.62503085]
[1643500182153,6.0,96.043,95.953,18.02503085]
[1643500182350,0.35,96.053,95.913,22.5401]
[1643500182351,2.95669142,96.041,95.95,15.06]
[1643500182586,6.0,96.031,95.921,24.6436]
[1643500182765,29.30898484,96.03,95.921,24.6436]
[1643500182955,0.1,96.029,95.921,24.6436]
[1643500183152,23.3345,96.029,95.921,24.6436]
[1643500183352,0.35,96.028,95.921,24.6436]
[1643500183556,6.0,96.019,95.921,24.6436]
[1643500183865,0.25,96.018,95.921,24.6436]
[1643500183953,0.25,96.018,95.92,15.06]
[1643500184368,2.95669142,96.017,95.9,15.06]
[1643500184567,6.0,96.007,95.9,15.06]
[1643500184761,15.639,96.0,95.894,23.3182]
[1643500184952,0.1,95.999,95.904,6.0]
[1643500185171,0.35,95.999,95.904,6.0]
[1643500185554,29.05898484,95.989,95.905,0.25]
[1643500185771,23.3556,95.988,95.905,0.25]
[1643500185959,0.1,95.987,95.905,0.25]
[1643500186154,0.1,95.987,95.894,23.3182]
[1643500186155,0.1,95.987,95.895,0.25]
[1643500186367,0.1,95.987,95.904,6.0]
[1643500186760,0.1,95.987,95.905,0.25]
[1643500186964,0.1,95.987,95.905,6.25]
[1643500187865,0.1,95.987,95.895,2.2628978]
[1643500188059,0.1,95.987,95.891,24.1353]
[1643500188060,6.0,95.978,95.891,24.1353]
[1643500188257,6.0,95.978,95.895,0.25]
[1643500188666,6.0,95.977,95.895,0.25]
[1643500188869,23.4658,95.976,95.895,0.25]
[1643500189077,0.1,95.975,95.895,0.25]
[1643500189265,0.35,95.975,95.892,0.25]
[1643500189457,0.35,95.975,95.892,22.9828]
[1643500189458,0.1,95.975,95.892,22.9828]
[1643500190969,0.1,95.975,95.893,106.8628978]
[1643500191171,0.1,95.986,95.902,6.0]
[1643500191377,0.1,95.986,95.903,6.25]
[1643500191581,23.4381,95.986,95.904,24.3236]
[1643500191767,23.4381,95.986,95.905,0.25]
[1643500191959,0.1,95.985,95.905,0.25]
[1643500192158,0.1,95.985,95.905,2.50599489]
[1643500192159,0.35,95.985,95.905,2.50599489]
[1643500192559,0.1,95.985,95.905,2.50599489]
[1643500192811,0.1,95.985,95.915,6.0]
[1643500193067,0.1,95.985,95.916,6.0]
[1643500193274,0.1,95.986,95.916,8.50599489]
[1643500193674,0.1,95.986,95.917,2.25599489]
[1643500193882,0.1,95.986,95.918,0.25]
[1643500194276,0.1,95.986,95.927,6.0]
[1643500194461,0.1,95.986,95.919,2.25599489]
[1643500194462,0.1,95.986,95.92,22.6346]